{"text_format":"1","workbook":"xlsx","n_sheets":2,"sheets":["Time Record","Instructions"],"not_rendered":{"charts":0,"images":1,"macros":1,"external_links":0,"defined_names":2,"comments":0,"pivot_tables":0},"unopened":[],"bounds":{"document_bytes":16777216,"sheet_cells":100000,"rows_first":2000,"rows_last":500,"rows_between":2000,"halvings":0,"cell_chars":16384,"cell_head_chars":4096},"cells_cut":0,"cells_raw":0,"read":"whole","date_system":"1900"}

{"sheet":"Time Record","index":0,"n_rows":34,"n_cols":36,"rows_kept":34,"cut":false,"hidden":false,"merged":[[7,34,7,35],[0,1,0,32],[2,25,2,32],[23,4,23,11],[23,15,23,18],[23,22,23,29],[2,14,2,21],[4,14,4,21],[4,25,4,32],[6,25,6,32],[6,14,6,21],[4,2,4,10],[25,22,25,25],[25,4,25,11],[25,15,25,18],[2,2,2,10],[31,7,31,14]]}
[null,"STUDENT EMPLOYEE TIME RECORD"]
[]
[null,"Name:",null,null,null,null,null,null,null,null,null,null,null,"Position Title:",null,null,null,null,null,null,null,null,null,null,"Department:"]
[]
[null,"GL #:",null,null,null,null,null,null,null,null,null,null,null,"Hourly Wage:",null,null,null,null,null,null,null,null,null,null,"Student #:"]
[]
[null,null,null,null,null,null,null,null,null,null,"Date of pay period being submitted:",null,null,"From:",null,null,null,null,null,null,null,null,null,null,"To:"]
[null,null,null,null,null,null,null,null,null,null,null,null,null,null,null,null,null,null,null,null,null,null,null,null,null,null,null,null,null,null,null,null,null,null,"Auto-Calculations"]
[null,null,1,2,3,4,5,6,7,8,9,10,11,12,13,14,15,16,17,18,19,20,21,22,23,24,25,26,27,28,29,30,31,null,"3rd - 18th","19th - 2nd"]
[null,"Jan",null,"H",null,null,null,null,null,null,null,null,null,null,null,null,null,null,null,null,null,null,null,null,null,null,null,null,null,null,null,null,null,null,{"$f":"SUM(E10:T10)","v":0},{"$f":"SUM(U10:AG10)+SUM(C11:D11)","v":0}]
[null,"Feb",null,null,null,null,null,null,null,null,null,null,null,null,"H",null,null,null,null,null,null,null,null,null,null,null,null,null,null,null,null,null,null,null,{"$f":"SUM(E11:T11)","v":0},{"$f":"SUM(U11:AG11)+SUM(C12:D12)","v":0}]
[null,"Mar",null,null,null,null,null,null,null,null,null,null,null,null,null,null,null,null,null,null,null,null,null,null,null,null,null,null,null,null,null,null,null,null,0,0]
[null,"Apr",null,null,null,null,null,null,null,null,null,null,null,null,null,"H",null,null,"TH",null,null,null,null,null,null,null,null,null,null,null,null,null,null,null,0,0]
[null,"May",null,null,null,null,null,null,null,null,null,null,null,null,null,null,null,null,null,null,null,null,null,"H",null,null,null,null,null,null,null,null,null,null,0,0]
[null,"Jun",null,null,null,null,null,null,null,null,null,null,null,null,null,null,null,null,null,null,null,null,null,null,null,null,null,null,null,null,null,"H",null,null,0,0]
[null,"Jul",null,null,null,null,null,null,null,null,null,null,null,null,null,null,null,null,null,null,null,null,null,null,null,null,null,null,null,null,null,null,null,null,0,0]
[null,"Aug",null,null,null,null,null,null,"H",null,null,null,null,null,null,null,null,null,null,null,null,null,null,null,null,null,null,null,null,null,null,null,null,null,0,0]
[null,"Sep",null,null,null,"H",null,null,null,null,null,null,null,null,null,null,null,null,null,null,null,null,null,null,null,null,null,null,null,null,null,null,null,null,0,0]
[null,"Oct",null,null,null,null,null,null,null,null,"H",null,null,null,null,null,null,null,null,null,null,null,null,null,null,null,null,null,null,null,null,null,null,null,0,0]
[null,"Nov",null,null,null,null,null,null,null,null,null,"H",null,null,null,null,null,null,null,null,null,null,null,null,null,null,null,null,null,null,null,null,null,null,0,0]
[null,"Dec",null,null,null,null,null,null,null,null,null,null,null,null,null,null,null,null,null,null,null,null,null,"HD",null,null,"H","TH",null,null,null,null,null,null,0,{"$f":"SUM(U21:AG21)+SUM(C22:D22)","v":0}]
[null,"Jan","H"]
[]
[null,null,"H",null,"Statutory Holiday",null,null,null,null,null,null,null,null,null,null,"Weekend",null,null,null,null,null,null,"Record # of hours worked or an Absence Code"]
[]
[null,null,"HD",null,"Half Day (replace with actual hours worked)",null,null,null,null,null,null,null,null,"TH",null,"Trinity Holiday",null,null,null,null,null,null,"Not a calendar day"]
[]
[null,"This form is available on theTWU website at: "]
[]
[]
[]
[null,"Supervisor Name (Printed):",null,null,null,null,null,null,null,null,null,null,null,null,null,null,null,null,"Supervisor Signature:"]
[]
[null,"For instructions on completing and submitting your time record, please go to the \"Instructions\" tab of this workbook"]

{"sheet":"Instructions","index":1,"n_rows":19,"n_cols":2,"rows_kept":19,"cut":false,"hidden":false,"merged":[[15,0,15,1],[16,0,16,1],[18,0,18,1],[9,0,9,1],[10,0,10,1],[11,0,11,1],[13,0,13,1],[12,0,12,1],[14,0,14,1],[6,0,6,1],[0,0,0,1],[1,0,1,1],[2,0,2,1],[3,0,3,1],[5,0,5,1]]}
["Instructions for Time Record Completion"]
[]
["Steps for Student Employees"]
["1. Download Time Record at http://www.twu.ca/life/career/gain-experience/on-campus-employment/default.html"]
[null,"* For each on-campus position you hold, you will need a new Time Record"]
["2. Enter Hours worked for each day"]
["3. Highlight hours you are currenlty submitting in yellow (as shown in chart below)"]
[null,"* On the 2nd of each month: submit hours worked between the 19th - 2nd"]
[null,"* On the 18th of each month: submit hours worked between the 3rd - 18th"]
["4. Email completed form to supervisor on appropriate date (either the 2nd or the 18th)"]
["*This form must be emailed to your supervisor from your student 'mytwu.ca' email account. "]
["By doing so, you are confirming that the hours recorded are the hours you worked."]
[]
["Steps for Supervisors"]
["1. Ensure that only hours being paid in the current pay period are highlighted"]
["2. Email the time record to payroll@twu.ca"]
[]
[]
["Example of Completed Time Record (remember to highlight the hours you are submitting this pay period)."]